Workbook

Sheet MSU
B1: Akseli Saukkola | E1: 18.1.1991 Jyväskylä
B2: SUPERPESIS | E2: Runkosarja | I2: Kärkilyönnit (KL), pesänvälit | P2: Ylempi loppusarja | W2: Alempi loppusarja | AD2: Arvo-ottelut | AH2: Mitalit
B3: Vuosi | C3: Sija | D3: Seura | E3: OTT | F3: KUN | G3: LÖI | H3: TOI | I3: KL | J3: 0 > 1 | K3: 1 > 2 | L3: 2 > 3 | M3: 3 > k | N3: KL-% | P3: OTT | Q3: KUN | R3: LÖI | S3: TOI | T3: KL | U3: KL-% | W3: OTT | X3: KUN | Y3: LÖI | Z3: TOI | AA3: KL | AB3: KL-% | AD3: IL | AE3: LL | AF3: hSM | AG3: K | AH3: H | AI3: P
B4: 2010 | C4: 5. | D4: Valo | F4: suomensarja
B5: 2010 | C5: 9. | D5: Kiri | E5: 2 | F5: 0 | G5: 0 | H5: 0 | I5: 2 | J5: 0 | K5: 1 | L5: 1 | M5: 0 | N5: 50.0 %
B6: 2011 | C6: 2. | D6: Lohi | F6: suomensarja
B7: 2012 | C7: 1. | D7: Lohi | F7: suomensarja
B8: 2013 | C8: 1. | D8: Lohi | F8: suomensarja
B9: 2014 | C9: 6. | D9: Valo | F9: suomensarja
B10: 2015 | C10: 5. | D10: Lohi | F10: suomensarja
B11: 2016 | C11: 1. | D11: Lohi | F11: suomensarja
B12: 2017 | C12: 12. | D12: Lohi | F12: ykköspesis
B13: 2018 | C13: 2. | D13: Lohi | F13: suomensarja
B14: 2018 | C14: 10. | D14: LieKi | F14: ykköspesis
B15: 2019 | C15: 1. | D15: Lohi | F15: suomensarja
B16: 2020
B17: 2021 | C17: 2. | D17: Kiri 2020 | F17: suomensarja
B18: 2022 | C18: 1. | D18: Kiri 2020 | F18: suomensarja
B19: 2023 | C19: 2. | D19: Kiri Jun | F19: suomensarja
B20: Yhteensä | E20: =SUM(E4:E19) -> 2 | F20: 0 | G20: 0 | H20: 0 | I20: 2 | J20: 0 | K20: 1 | L20: 1 | M20: 0 | N20: 50.0 % | P20: =SUM(P4:P19) -> 0 | Q20: =SUM(Q4:Q19) -> 0 | R20: =SUM(R4:R19) -> 0 | S20: =SUM(S4:S19) -> 0 | T20: =SUM(T4:T19) -> 0 | U20: 0.0 % | W20: =SUM(W4:W19) -> 0 | X20: =SUM(X4:X19) -> 0 | Y20: =SUM(Y4:Y19) -> 0 | Z20: =SUM(Z4:Z19) -> 0 | AA20: =SUM(AA4:AA19) -> 0 | AB20: 0.0 % | AD20: =SUM(AD4:AD19) -> 0 | AE20: 0 | AF20: 0 | AG20: 0 | AH20: 0 | AI20: 0
B21: Pesispörssi | D21: =SUM(F20:H20)+((I20-F20-G20)/3)+(E20/3)+(AD20*25)+(AE20*25)+(AF20*10)+(AG20*25)+(AH20*20)+(AI20*15) -> 1.3
B23: URA SUPERISSA | E23: OTT | F23: KUN | G23: LÖI | H23: TOI | I23: KL | K23: ka/L | L23: ka/T | M23: ka/KL | N23: KL-% | P23: ENSIMMÄISET RUNKOSARJASSA
B24: Runkosarja | E24: =PRODUCT(E20) -> 2 | F24: =PRODUCT(F20) -> 0 | G24: =PRODUCT(G20) -> 0 | H24: =PRODUCT(H20) -> 0 | I24: =PRODUCT(I20) -> 2 | K24: =PRODUCT((F24+G24)/E24) -> 0.00 | L24: =PRODUCT(H24/E24) -> 0.00 | M24: =PRODUCT(I24/E24) -> 1.00 | N24: =PRODUCT(N20) -> 50.0 % | P24: Ottelu | R24: 22.07. 2010 JoMa - Kiri 0-2 (1-9, 1-2) | Z24: 1. ottelu | AC24: 19 v 6 kk 4 pv
B25: Ylempi loppusarja | P25: Lyöty
B26: Alempi loppusarja | P26: Tuotu
B27: KAIKKI | E27: =SUM(E24:E26) -> 2 | F27: =SUM(F24:F26) -> 0 | G27: =SUM(G24:G26) -> 0 | H27: =SUM(H24:H26) -> 0 | I27: =SUM(I24:I26) -> 2 | K27: =PRODUCT((F27+G27)/E27) -> 0.00 | L27: =PRODUCT(H27/E27) -> 0.00 | M27: =PRODUCT(I27/E27) -> 1.00 | N27: 50.0 % | P27: Kunnari
B29: Seurat | D29: Kiri = Jyväskylän Kiri (1930), kasvattajaseura
D30: Valo = Jyväskylän Valo (1949)
D31: Lohi = Jyväskylän Lohi (1924)
D32: Kiri 2020 = Jyväskylän Kiri 2020 (2020)
D33: Kiri Jun = Jyväskylän Kiri&Kirittäret Juniorit (1996)

Sheet MYP, MSS
B1: Akseli Saukkola | E1: 18.1.1991 Jyväskylä
B2: YKKÖSPESIS | E2: Runkosarja | L2: Runkosarja TOP-10 | Q2: Jatkosarjat | X2: SUOMENSARJA | AA2: Runkosarja | AH2: Runkosarja TOP-10 | AM2: Jatkosarjat
B3: Vuosi | C3: Sija | D3: Seura | E3: OTT | F3: KUN | G3: LÖI | H3: TOI | I3: KL | J3: KL-% | L3: LÖI | M3: TOI | N3: L+T | O3: KL | Q3: OTT | R3: KUN | S3: LÖI | T3: TOI | U3: KL | V3: KL-% | X3: Vuosi | Y3: Sija | Z3: Seura | AA3: OTT | AB3: KUN | AC3: LÖI | AD3: TOI | AE3: KL | AF3: KL-% | AH3: LÖI | AI3: TOI | AJ3: L+T | AK3: KL | AM3: OTT | AN3: KUN | AO3: LÖI | AP3: TOI | AQ3: KL | AR3: KL-%
X4: 2010 | Y4: 5. | Z4: Valo | AA4: 5 | AB4: 1 | AC4: 2 | AD4: 4 | AE4: 8 | AF4: 38.1 % | AG4: 21
X5: 2011 | Y5: 2. | Z5: Lohi | AA5: 5 | AB5: 0 | AC5: 3 | AD5: 3 | AE5: 12 | AF5: 52.2 % | AG5: 23
X6: 2012 | Y6: 1. | Z6: Lohi | AA6: 13 | AB6: 0 | AC6: 23 | AD6: 2 | AE6: 32 | AF6: 38.6 % | AG6: 83 | AM6: 9 | AN6: 0 | AO6: 6 | AP6: 0 | AQ6: 11 | AR6: 31.4 % | AS6: 35
X7: 2013 | Y7: 1. | Z7: Lohi | AA7: 13 | AB7: 0 | AC7: 29 | AD7: 3 | AE7: 44 | AF7: 54.3 % | AG7: 81 | AH7: 7. | AM7: 6 | AN7: 0 | AO7: 9 | AP7: 0 | AQ7: 11 | AR7: 34.4 % | AS7: 32
X8: 2014 | Y8: 6. | Z8: Valo | AA8: 15 | AB8: 1 | AC8: 10 | AD8: 4 | AE8: 34 | AF8: 48.6 % | AG8: 70
X9: 2015 | Y9: 5. | Z9: Lohi | AA9: 16 | AB9: 3 | AC9: 31 | AD9: 5 | AE9: 58 | AF9: 54.7 % | AG9: 106 | AH9: 4.
X10: 2016 | Y10: 1. | Z10: Lohi | AA10: 16 | AB10: 2 | AC10: 56 | AD10: 6 | AE10: 89 | AF10: 52.4 % | AG10: 170 | AH10: 1. | AJ10: 1. | AK10: 5. | AM10: 8 | AN10: 0 | AO10: 15 | AP10: 4 | AQ10: 32 | AR10: 47.7 % | AS10: 67
B11: 2017 | C11: 12. | D11: Lohi | E11: 21 | F11: 0 | G11: 25 | H11: 2 | I11: 50 | J11: 37.9 % | K11: 132
B12: 2018 | C12: 10. | D12: LieKi | E12: 5 | F12: 0 | G12: 5 | H12: 0 | I12: 7 | J12: 25.0 % | K12: 28 | X12: 2018 | Y12: 2. | Z12: Lohi | AA12: 5 | AB12: 1 | AC12: 12 | AD12: 2 | AE12: 19 | AF12: 55.9 % | AG12: 34 | AM12: 4 | AN12: 0 | AO12: 10 | AP12: 0 | AQ12: 15 | AR12: 42.9 % | AS12: 35
X13: 2019 | Y13: 1. | Z13: Lohi | AA13: 12 | AB13: 0 | AC13: 24 | AD13: 3 | AE13: 42 | AF13: 50.0 % | AG13: 84
X15: 2021 | Y15: 2. | Z15: Kiri 2020 | AA15: 11 | AB15: 0 | AC15: 35 | AD15: 4 | AE15: 46 | AF15: 62.2 % | AG15: 74 | AH15: 4. | AM15: 2 | AN15: 0 | AO15: 5 | AP15: 0 | AQ15: 9 | AR15: 52.9 % | AS15: 17
X16: 2022 | Y16: 1. | Z16: Kiri 2020 | AA16: 13 | AB16: 2 | AC16: 41 | AD16: 3 | AE16: 64 | AF16: 61.5 % | AG16: 104 | AH16: 2. | AJ16: 4. | AM16: 6 | AN16: 0 | AO16: 9 | AP16: 0 | AQ16: 14 | AR16: 51.9 % | AS16: 27
X17: 2023 | Y17: 2. | Z17: Kiri Jun | AA17: 5 | AB17: 1 | AC17: 7 | AD17: 3 | AE17: 13 | AF17: 36.1 % | AG17: 36 | AM17: 3 | AN17: 0 | AO17: 3 | AP17: 0 | AQ17: 5 | AR17: 26.3 % | AS17: 19
B18: YHTEENSÄ | E18: =SUM(E4:E17) -> 26 | F18: =SUM(F4:F17) -> 0 | G18: =SUM(G4:G17) -> 30 | H18: =SUM(H4:H17) -> 2 | I18: =SUM(I4:I17) -> 57 | J18: =PRODUCT(I18/K18) -> 35.6 % | K18: =SUM(K4:K17) -> 160 | Q18: =SUM(Q4:Q17) -> 0 | R18: =SUM(R4:R17) -> 0 | S18: =SUM(S4:S17) -> 0 | T18: =SUM(T4:T17) -> 0 | U18: =SUM(U4:U17) -> 0 | V18: 0.0 % | W18: =SUM(W4:W17) -> 0 | X18: YHTEENSÄ | AA18: =SUM(AA4:AA17) -> 129 | AB18: =SUM(AB4:AB17) -> 11 | AC18: =SUM(AC4:AC17) -> 273 | AD18: =SUM(AD4:AD17) -> 42 | AE18: =SUM(AE4:AE17) -> 461 | AF18: =PRODUCT(AE18/AG18) -> 52.0 % | AG18: =SUM(AG4:AG17) -> 886 | AM18: =SUM(AM4:AM17) -> 38 | AN18: =SUM(AN4:AN17) -> 0 | AO18: =SUM(AO4:AO17) -> 57 | AP18: =SUM(AP4:AP17) -> 4 | AQ18: =SUM(AQ4:AQ17) -> 97 | AR18: =PRODUCT(AQ18/AS18) -> 41.8 % | AS18: =SUM(AS4:AS17) -> 232
B20: KAIKKI OTTELUT | E20: OTT | F20: KUN | G20: LÖI | H20: TOI | I20: KL | J20: KL-% | L20: ka/L | M20: ka/T | N20: ka/l+t | O20: ka/kl | R20: Seurat | T20: Kiri = Jyväskylän Kiri (1930), kasvattajaseura
B21: SUPERPESIS | E21: 2 | F21: 0 | G21: 0 | H21: 0 | I21: 2 | J21: 50.0 % | K21: =PRODUCT(I21/J21) -> 4 | L21: =PRODUCT((F21+G21)/E21) -> 0.00 | M21: =PRODUCT(H21/E21) -> 0.00 | N21: =PRODUCT((F21+G21+H21)/E21) -> 0.00 | O21: =PRODUCT(I21/E21) -> 1.00 | T21: Valo = Jyväskylän Valo (1949)
B22: YKKÖSPESIS | E22: =PRODUCT(E18+Q18) -> 26 | F22: =PRODUCT(F18+R18) -> 0 | G22: =PRODUCT(G18+S18) -> 30 | H22: =PRODUCT(H18+T18) -> 2 | I22: =PRODUCT(I18+U18) -> 57 | J22: =PRODUCT(I22/K22) -> 35.6 % | K22: =PRODUCT(K18+W18) -> 160 | L22: 1.15 | M22: 0.08 | N22: 1.23 | O22: 2.19 | T22: Lohi = Jyväskylän Lohi (1924)
B23: SUOMENSARJA | E23: =PRODUCT(AA18+AM18) -> 167 | F23: =PRODUCT(AB18+AN18) -> 11 | G23: =PRODUCT(AC18+AO18) -> 330 | H23: =PRODUCT(AD18+AP18) -> 46 | I23: =PRODUCT(AE18+AQ18) -> 558 | J23: =PRODUCT(I23/K23) -> 49.9 % | K23: =PRODUCT(AG18+AS18) -> 1118 | L23: =PRODUCT((F23+G23)/E23) -> 2.04 | M23: =PRODUCT(H23/E23) -> 0.28 | N23: =PRODUCT((F23+G23+H23)/E23) -> 2.32 | O23: =PRODUCT(I23/E23) -> 3.34 | T23: Kiri 2020 = Jyväskylän Kiri 2020 (2020)
B24: YHTEENSÄ | E24: =SUM(E21:E23) -> 195 | F24: =SUM(F21:F23) -> 11 | G24: 360 | H24: 48 | I24: 617 | J24: =PRODUCT(I24/K24) -> 48.1 % | K24: =SUM(K21:K23) -> 1282 | L24: =PRODUCT((F24+G24)/E24) -> 1.90 | M24: =PRODUCT(H24/E24) -> 0.25 | N24: =PRODUCT((F24+G24+H24)/E24) -> 2.15 | O24: =PRODUCT(I24/E24) -> 3.16 | T24: Kiri Jun = Jyväskylän Kiri&Kirittäret Juniorit (1996)
